bitfinex-derivatives/quotes_ETHF0:USTF0_20251001
["timestamp","ask_amount","ask_price","bid_price","bid_amount"]
[1759298764487,0.00238139,4143.6,4143.5,7.22468332]
[1759298764781,0.00238139,4143.6,4143.5,9.7818564]
[1759298764985,3.2078,4144.5,4144.4,1.1922]
[1759298765375,3.2078,4144.5,4144.4,6.1922]
[1759298765581,3.437,4145.6,4145.5,1.32628]
[1759298765775,3.2078,4145.6,4145.5,1.32628]
[1759298765980,3.21030338,4145.6,4145.5,1.32628]
[1759298766177,4.10047338,4145.6,4145.2,0.76461]
[1759298766377,0.2292,4145.3,4145.2,1.19211]
[1759298766576,4.00530338,4145.6,4145.5,0.3435]
[1759298766788,4.25030338,4145.6,4145.5,0.8922]
[1759298766983,4.25030338,4145.6,4145.5,0.758]
[1759298767288,4.25030338,4145.6,4145.5,0.5398]
[1759298768787,4.25030338,4145.6,4145.5,0.8922]
[1759298768788,3.91140338,4145.6,4145.5,0.8922]
[1759298768988,3.21030338,4145.6,4145.5,0.8922]
[1759298769678,0.00250338,4145.6,4145.5,0.8922]
[1759298770688,1.04250338,4145.6,4145.5,0.758]
[1759298772685,1.04250338,4145.6,4145.4,0.43409]
[1759298772686,0.4561,4144.6,4144.5,0.3435]
[1759298772885,0.4561,4144.6,4144.5,0.5617]
[1759298773285,0.795,4144.6,4144.5,0.8922]
[1759298774288,0.5839,4144.6,4144.1,0.3305]
[1759298774484,0.795,4144.2,4144.1,0.758]
[1759298774686,0.4561,4144.2,4144.1,0.758]
[1759298774978,0.795,4144.2,4144.1,0.758]
[1759298777493,0.795,4144.2,4144.1,0.5398]
[1759298778987,0.4561,4144.2,4144.1,0.758]
[1759298779187,4.10188,4144.6,4144.5,0.9152]
[1759298779792,4.66268,4144.6,4144.5,0.9152]
[1759298782387,4.66268,4144.6,4144.5,0.5517]
[1759298782692,4.66268,4144.6,4144.1,0.43422]
[1759298782693,0.7757,4144.3,4144.2,0.5517]
[1759298782890,1.20991,4144.3,4144.2,0.98592]
[1759298783683,0.87127,4143.7,4143.6,0.5401]
[1759298783885,1.74115654,4143.7,4143.6,0.5401]
[1759298784285,0.7759,4143.7,4143.6,0.7581]
[1759298784482,0.437,4143.7,4143.6,0.7581]
[1759298784682,0.7759,4143.7,4143.6,0.7581]
[1759298787197,0.7759,4143.7,4143.6,0.5401]
[1759298787490,1.0209,4143.7,4143.6,0.5401]
[1759298787690,1.21018,4143.6,4143.5,0.0025664]
[1759298789493,1.21018,4143.6,4143.5,0.3170664]
[1759298789995,0.7759,4143.6,4143.5,0.7606664]
[1759298790186,1.21018,4143.6,4143.5,0.7606664]
[1759298794204,1.21018,4143.6,4143.5,0.0025664]
[1759298798111,0.87128,4143.6,4143.5,0.8905664]
[1759298798405,1.45518,4143.6,4143.5,0.8905664]
[1759298798804,1.45518,4143.6,4143.5,0.7606664]
[1759298801205,1.45518,4143.6,4143.5,0.0025664]
[1759298803410,1.45518,4143.6,4143.5,0.5426664]
[1759298806602,1.45518,4143.6,4143.5,0.3170664]
[1759298808515,1.45518,4143.6,4143.5,0.0025664]
[1759298810912,1.45518,4143.6,4143.5,0.7606664]
[1759298811111,1.21018,4143.6,4143.5,0.7606664]
[1759298811416,1.45518,4143.6,4143.5,0.7606664]
[1759298812120,1.45518,4143.6,4143.5,0.5426664]
[1759298814818,1.45518,4143.6,4143.5,0.0025664]
[1759298817118,1.45518,4143.6,4142.6,0.7682]
[1759298817119,0.442,4142.7,4142.6,0.7682]
[1759298817412,0.2177,4143.5,4143.4,0.7682]
[1759298817623,3.9889,4143.5,4143.4,0.7682]
[1759298817916,0.7811,4143.3,4143.2,0.7682]
[1759298818216,0.46645434,4143.5,4143.4,0.7682]
[1759298819922,0.22045434,4143.5,4143.4,0.7682]
[1759298823320,0.22045434,4143.5,4143.4,1.2025]
[1759298823722,0.65474434,4143.5,4143.4,1.2025]
[1759298824018,0.00275434,4143.5,4143.4,1.2025]
[1759298829617,0.22045434,4143.5,4143.4,1.2025]
[1759298829926,0.44475434,4143.5,4143.4,1.2025]
[1759298830125,0.78385434,4143.5,4143.4,1.2025]
[1759298830326,0.44475434,4143.5,4143.4,1.2025]
[1759298831227,0.87904434,4143.5,4143.4,1.2025]
[1759298833429,0.22045434,4143.5,4143.4,1.2025]
[1759298833729,0.00275434,4143.5,4143.4,1.2025]
[1759298843433,1.19564434,4143.5,4143.4,1.2025]
[1759298844334,0.86094434,4143.5,4143.4,1.2025]
[1759298845134,1.19564434,4143.5,4143.4,1.2025]
[1759298845639,2.20241496,4143.5,4143.4,0.7682]
[1759298846838,2.57661496,4143.5,4143.4,0.338]
[1759298847437,0.43431,4143.3,4143.2,0.00286522]
[1759298847633,1.19761,4143.3,4143.2,0.32616522]
[1759298847832,1.19761,4143.3,4143.2,0.00286522]
[1759298848138,6.19761,4143.3,4143.2,0.00286522]
[1759298849033,6.19761,4143.3,4143.2,0.32616522]
[1759298849034,6.44361,4143.3,4143.2,0.32616522]
[1759298850432,6.44261,4143.3,4143.2,0.32616522]
[1759298850836,6.44261,4143.3,4143.2,0.53966522]
[1759298851036,0.4343,4143.4,4143.2,0.76756522]
[1759298851236,0.43431,4143.3,4143.2,0.76756522]
[1759298851437,0.43431,4143.3,4143.2,1.20189522]
[1759298851740,0.64811,4143.3,4143.2,1.20189522]
[1759298857553,0.24775434,4143.5,4143.4,1.199]
[1759298858052,0.89584434,4143.5,4143.4,0.7647]
[1759298858552,1.44534434,4143.5,4143.4,0.7647]
[1759298859049,0.68204434,4143.5,4143.4,1.199]
[1759298859249,0.89584434,4143.5,4143.4,0.7647]
[1759298859449,1.23054434,4143.5,4143.4,0.7647]
[1759298859651,1.44534434,4143.5,4143.4,0.7647]
[1759298861951,1.20034434,4143.5,4143.4,0.7647]
[1759298862152,1.44534434,4143.5,4143.4,1.199]
[1759298862454,1.44534434,4143.5,4143.4,0.7647]
[1759298862656,1.44534434,4143.5,4143.4,1.199]
[1759298862953,1.44534434,4143.5,4143.4,0.7647]
[1759298863350,0.00275434,4143.5,4143.4,2.20577062]
[1759298863551,0.00275434,4143.5,4143.4,7.85669333]
[1759298863758,0.43421,4144.3,4144.2,0.7647]
[1759298864053,0.43421,4144.3,4144.2,1.19892]
[1759298864457,0.2138,4144.4,4144.3,0.87561]
[1759298864754,0.65071682,4144.4,4144.3,1.19891]
[1759298864957,0.65071682,4144.4,4144.3,0.7647]
[1759298865253,1.20021682,4144.4,4144.3,0.7647]
[1759298865451,1.20021682,4144.4,4143.6,1.08466566]
[1759298865452,0.3347,4144.0,4143.6,1.08466566]
[1759298865646,0.3347,4143.5,4143.4,0.65038566]
[1759298865849,1.19759,4143.5,4143.4,0.7647]
[1759298866345,1.44259,4143.5,4143.4,0.5368]
[1759298866547,0.43431,4143.3,4143.2,0.00286522]
[1759298866754,0.43431,4143.3,4143.2,0.21636522]
[1759298866755,0.7633,4143.3,4143.2,0.21636522]
[1759298866953,0.2138,4143.9,4143.8,0.7647]
[1759298869351,3.2078,4144.0,4143.9,0.97105]
[1759298869555,3.2078,4144.0,4143.9,1.19895]
[1759298870855,3.6364,4144.0,4143.9,0.7647]
[1759298871061,0.7633,4144.0,4143.9,0.7647]
[1759298871456,1.0083,4144.0,4143.9,0.7647]
[1759298871655,4.2161,4144.0,4143.9,0.7647]
[1759298872758,4.65034,4144.0,4143.9,1.19895]
[1759298876362,4.65034,4144.0,4143.9,0.97105]
[1759298876560,4.65034,4144.0,4143.3,0.43432]
[1759298876561,1.2071,4143.4,4143.3,0.43432]
[1759298876755,0.6834,4143.4,4143.3,1.21982]
[1759298877554,0.4384,4143.4,4143.3,1.21982]
[1759298877760,0.2114,4143.4,4143.3,1.21982]
[1759298878066,0.76867,4143.7,4143.6,0.43428]
[1759298878363,1.22507,4143.7,4143.6,1.21978]
[1759298878564,1.45207,4143.7,4143.6,0.7855]
[1759298878861,1.45207,4143.7,4143.6,0.5611]
[1759298879369,1.20711,4143.3,4143.2,0.22126522]
[1759298879565,1.45211,4143.3,4143.2,0.22126522]
[1759298879758,1.0178,4143.3,4143.2,1.22269522]
[1759298881865,1.45211,4143.3,4143.2,1.22269522]
[1759298882068,0.4384,4143.3,4143.2,1.22269522]
[1759298882268,0.2114,4143.3,4143.2,1.22269522]
[1759298883164,0.7728,4143.3,4143.2,1.22269522]
[1759298884864,0.2114,4143.3,4143.2,1.22269522]
[1759298885070,0.64567,4143.7,4143.6,0.77698]
[1759298885269,3.3374,4144.0,4143.9,1.21975]
[1759298885270,3.2078,4144.0,4143.9,1.21975]
[1759298885462,3.2078,4144.0,4143.9,0.7855]
[1759298885769,4.41484,4144.0,4143.9,0.7855]
[1759298885963,3.9806,4144.0,4143.9,1.21975]
[1759298886365,3.6462,4144.0,4143.9,1.21975]
[1759298886670,3.9806,4144.0,4143.9,1.21975]
[1759298888464,0.4384,4144.0,4143.9,1.21975]
[1759298888969,0.7728,4144.0,4143.9,1.21975]
[1759298889372,1.20704,4144.0,4143.9,1.21975]
[1759298890668,0.7728,4144.0,4143.9,1.21975]
[1759298890972,0.64561,4144.3,4144.2,1.21971]
[1759298891172,1.20701,4144.3,4144.2,1.21971]
[1759298891773,0.87261,4144.3,4144.2,1.21971]
[1759298892073,1.20701,4144.3,4144.2,1.21971]
[1759298893465,0.43425,4143.9,4143.8,0.86878566]
[1759298893665,0.87266,4143.8,4143.7,1.30305566]
[1759298893870,1.20706,4143.8,4143.7,1.64575566]
[1759298894174,1.20706,4143.8,4143.7,1.87015566]
[1759298896074,0.7728,4143.8,4143.7,1.87015566]
[1759298898279,1.20706,4143.8,4143.7,1.87015566]
[1759298898469,1.20706,4143.8,4143.7,1.21977]
[1759298898779,0.7728,4143.8,4143.7,1.87015566]
[1759298899278,1.20706,4143.8,4143.7,1.87015566]
[1759298899681,0.7728,4143.8,4143.7,1.87015566]
[1759298900368,3.21051682,4144.4,4144.3,1.18721]
[1759298900573,0.00271682,4144.4,4144.3,3.16969034]
[1759298900781,0.00271682,4144.4,4144.3,2.30221697]
[1759298900972,0.00271682,4144.4,4144.3,7.30221697]
[1759298901169,3.7658,4145.6,4145.5,1.32388]
[1759298901368,4.2271,4145.6,4145.5,0.8898]
[1759298901573,4.2271,4145.6,4145.5,0.753]
[1759298902181,4.23021625,4145.6,4145.2,0.43411]
[1759298902382,0.7743,4145.4,4145.3,0.5391]
[1759298902581,1.64430697,4145.4,4145.3,1.1871]
[1759298902781,0.2257,4145.4,4145.3,1.1871]
[1759298903875,3.21091625,4145.6,4145.5,1.32168]
[1759298904792,0.00311625,4145.6,4145.5,1.32168]
[1759298907479,0.22941625,4145.6,4145.5,1.32168]
[1759298909085,0.76141625,4145.6,4145.5,1.32168]
[1759298909275,0.98438,4145.5,4145.4,0.7515]
[1759298909475,0.66038,4145.5,4145.4,0.7515]
[1759298910086,0.2263,4145.5,4145.4,0.7515]
[1759298910784,0.7583,4145.5,4145.4,0.7515]
[1759298910977,0.8841,4145.5,4145.4,0.3146]
[1759298911179,0.8841,4145.5,4145.4,0.5253]
[1759298911384,0.7583,4145.5,4145.4,0.7515]
[1759298913278,5.5703,4145.5,4144.7,0.65002976]
[1759298913481,5.5703,4145.5,4144.5,0.86670635]
[1759298913482,0.4343,4144.2,4143.9,1.30005953]
[1759298913671,0.7583,4143.5,4143.4,0.4369]
[1759298914073,0.7583,4143.5,4143.4,0.2107]
[1759298914285,0.7583,4143.3,4143.2,0.00286522]
[1759298914486,1.87530697,4143.3,4143.2,0.00286522]
[1759298917489,1.87530697,4143.3,4143.2,0.52816522]
[1759298917880,1.87530697,4143.3,4143.2,0.31746522]
[1759298918086,1.87530697,4143.3,4143.2,0.00286522]
[1759298923995,1.87530697,4143.3,4143.2,0.52816522]
[1759298924391,0.4343,4143.3,4143.2,0.75436522]
[1759298924587,3.4548,4143.5,4143.2,0.43976522]
[1759298924791,0.2263,4143.4,4143.3,0.97511]
[1759298925096,0.6606,4143.4,4143.3,1.18581]
[1759298925297,1.1926,4143.4,4143.3,1.18581]
[1759298925990,1.19261,4143.3,4143.2,0.00286522]
[1759298926190,2.30961697,4143.3,4143.2,0.00286522]
[1759298928900,2.30961697,4143.3,4142.3,0.95972]
[1759298928901,0.7583,4142.4,4142.3,0.95972]
[1759298929096,1.87530697,4142.4,4142.3,0.95972]
[1759298929299,2.30971697,4142.4,4142.3,0.7515]
[1759298929604,1.19274,4142.1,4142.0,0.5253]
[1759298929795,1.87814919,4142.1,4142.0,0.52757742]
[1759298930002,1.87814919,4142.1,4142.0,0.75377742]
[1759298932402,1.55414919,4142.1,4142.0,0.88987742]
[1759298933306,1.62184919,4142.1,4142.0,0.00227742]
[1759298933599,0.4308,4141.6,4141.5,1.2963]
[1759298933798,0.247,4141.7,4141.5,1.2963]
[1759298934007,0.2109,4142.0,4141.9,0.85316]
[1759298934305,0.4579,4142.0,4141.9,0.85316]
[1759298934603,0.4579,4142.0,4141.9,0.73240018]
[1759298936695,0.00284222,4142.1,4142.0,0.98475]
[1759298936898,0.74834222,4142.1,4142.0,0.7302]
[1759298937409,0.00284222,4142.1,4142.0,0.8618]
[1759298940105,0.21374222,4142.1,4142.0,0.8618]
[1759298940599,0.00284222,4142.1,4142.0,0.8618]
[1759298941106,0.00284222,4142.1,4142.0,1.29625]
[1759298941510,0.64818222,4142.1,4142.0,0.8618]
[1759298941708,1.18278222,4142.1,4142.0,0.8618]
[1759298942202,0.7455,4142.0,4141.9,1.16686018]
[1759298942398,1.30080697,4142.0,4141.9,1.16686018]
[1759298943606,1.08616,4141.9,4141.2,0.86615442]
[1759298943811,1.08616,4141.9,4140.5,1.73098332]
[1759298943812,1.08642,4141.0,4140.5,0.4431]
[1759298944013,4.51240697,4140.6,4140.5,0.4431]
[1759298944606,9.51240697,4140.6,4140.5,0.44506957]
[1759298944809,9.76340697,4140.6,4140.5,0.38610973]
[1759298948008,4.51240697,4140.6,4140.5,0.38610973]
[1759298948208,4.76340697,4140.6,4140.5,0.38610973]
[1759298949918,9.76340697,4140.6,4140.5,0.38610973]
[1759298950612,3.8934,4140.6,4140.5,0.59650973]
[1759298950815,4.76340697,4140.6,4140.5,0.80480973]
[1759298951017,4.76340697,4140.6,4140.5,0.38610973]
[1759298953319,3.8934,4140.6,4140.5,0.80480973]
[1759298953624,4.76340697,4140.6,4140.5,0.80480973]
[1759298954225,4.32880697,4140.6,4140.5,0.80480973]
[1759298955831,4.32880697,4140.6,4136.4,3.02922081]
[1759298956126,4.32880697,4140.6,4136.2,0.327]
[1759298956127,4.07780697,4138.0,4137.9,0.44286714]
[1759298956311,3.2078,4138.0,4137.9,0.44286714]
[1759298956513,3.4608,4138.6,4138.5,0.5503]
[1759298956712,3.69926962,4138.6,4138.5,0.55224193]
[1759298956921,3.69926962,4138.6,4138.5,5.55224193]
[1759298956922,3.2099508,4138.6,4138.5,5.55224193]
[1759298957519,0.0021508,4138.6,4138.5,5.55224193]
[1759298957727,0.0021508,4138.6,4138.5,5.86374193]
[1759298958331,0.0021508,4138.6,4138.5,6.11674193]
[1759298958545,3.2078,4139.1,4139.0,0.8899]
[1759298958931,3.69717227,4139.1,4139.0,5.8899]
[1759298959141,3.2078,4139.1,4139.0,5.8899]
[1759298959740,3.2107322,4139.1,4139.0,6.32467]
[1759298961231,3.70018178,4139.1,4139.0,6.32467]
[1759298961433,3.2107322,4139.1,4139.0,6.32467]
[1759298962242,0.0029322,4139.1,4139.0,6.32467]
[1759298966444,0.0029322,4139.1,4138.4,1.08707]
[1759298966445,0.9064,4138.0,4137.8,0.43489]
[1759298966740,3.2078,4138.2,4138.1,0.4237]
[1759298966945,3.2078,4138.2,4138.1,5.6787]
[1759298967141,3.2078,4138.7,4138.6,0.85851]
[1759298967341,0.5504322,4139.1,4139.0,0.85847]
[1759298967542,1.47537615,4139.1,4139.0,1.11574589]
[1759298967742,0.5504322,4139.1,4139.0,1.11574589]
[1759298968138,1.04090408,4139.1,4139.0,0.42597589]
[1759298968348,1.26530408,4139.1,4139.0,0.42597589]
[1759298968547,1.26530408,4139.1,4139.0,0.77087589]
[1759298970344,0.70870408,4139.1,4139.0,0.77087589]
[1759298971641,0.0029322,4139.1,4139.0,0.90167589]
[1759298973244,0.49569932,4139.1,4139.0,0.90167589]
[1759298975546,0.49569932,4139.1,4139.0,1.33644589]
[1759298976551,0.0029322,4139.1,4139.0,6.33644589]
[1759298978546,0.3322,4139.7,4139.6,1.2033]
[1759298978851,4.18997,4139.9,4139.8,0.85838]
[1759298979052,4.68219965,4139.9,4139.8,1.20328]
[1759298979552,4.6852103,4139.9,4139.8,1.20328]
[1759298979749,4.2505403,4139.9,4139.8,1.20328]
[1759298980950,0.00301065,4139.9,4139.8,1.20328]
[1759298983350,0.3322,4140.6,4140.5,0.43461]
[1759298983554,3.2078,4140.9,4140.8,0.7686]
[1759298983742,3.2078,4140.9,4140.8,1.0226]
[1759298984458,3.20960888,4140.9,4140.8,1.0226]
[1759298984949,3.20960888,4140.9,4140.8,6.0226]
[1759298985156,0.00180888,4140.9,4140.8,6.0226]
[1759298994959,0.75480888,4140.9,4140.8,6.0216]
[1759298995352,0.00180888,4140.9,4140.8,6.0216]
[1759298996164,0.00180888,4140.9,4140.8,6.45618]
[1759298998164,0.01048,4141.2,4141.1,1.19544]
[1759298998462,0.01048,4141.2,4141.1,1.44744]
[1759298998962,0.01242171,4141.2,4141.1,1.44744]
[1759299000665,0.5304,4142.1,4142.0,1.19535]
[1759299000867,0.5304,4142.1,4142.0,1.44735]
[1759299001465,0.753,4142.1,4142.0,1.44735]
[1759299001767,0.75520763,4142.1,4142.0,1.44952159]
[1759299002757,0.00220763,4142.1,4142.0,1.58032159]
[1759299002963,0.00220763,4142.1,4142.0,1.74558174]
[1759299003359,0.43437,4142.8,4142.6,1.19529]
[1759299003360,0.75487,4142.8,4142.6,1.19529]
[1759299003563,0.43435,4143.0,4142.9,0.7609]
[1759299003763,0.43435,4143.0,4142.9,1.0129]
[1759299003962,0.96475,4143.0,4142.9,1.0129]
[1759299004376,0.96703873,4143.0,4142.9,1.0129]
[1759299004665,0.96703873,4143.0,4142.7,0.43438]
[1759299004666,0.2099,4142.7,4142.6,0.64718]
[1759299004969,0.753,4142.7,4142.6,1.22658]
[1759299005167,0.753,4142.7,4142.6,0.43439]
[1759299005863,0.753,4142.7,4142.6,0.64719]
[1759299007569,0.753,4142.7,4142.6,0.43439]
[1759299009669,0.2099,4142.1,4142.0,0.00217159]
[1759299009871,0.753,4142.1,4142.0,0.68545]
[1759299010071,0.753,4142.1,4141.3,1.08629]
[1759299010072,10.86147,4142.0,4140.0,1.73098332]
[1759299010273,3.2078,4140.2,4140.1,0.4335]
[1759299010473,3.6983117,4140.2,4140.1,0.4335]
[1759299010972,3.6983117,4140.2,4140.1,0.76335446]
[1759299011173,0.4905117,4140.2,4140.1,0.76335446]
[1759299011368,3.2078,4140.7,4140.5,1.00141]
[1759299011568,3.2078,4140.7,4140.6,0.7609]
[1759299011774,0.51142149,4140.7,4140.6,0.7609]
[1759299012669,0.51142149,4140.7,4140.6,1.0159]
[1759299013377,3.2078,4141.2,4141.0,1.10805]
[1759299013569,0.51178181,4141.1,4141.0,1.10805]
[1759299013971,0.51178181,4141.1,4141.0,1.32875]
[1759299020683,0.51178181,4141.1,4141.0,0.8942]
[1759299022191,0.51178181,4141.1,4139.0,0.125]
[1759299022192,0.43465,4140.1,4139.0,0.125]
[1759299022400,0.4347,4139.6,4139.0,0.125]
[1759299022696,9.35986387,4139.6,4139.0,0.125]
[1759299022891,7.4178446,4139.6,4139.0,0.125]
[1759299023097,7.4178446,4139.6,4139.5,0.3561]
[1759299023098,3.97770402,4139.6,4139.5,0.3561]
[1759299023395,3.97998169,4139.6,4139.5,0.35904625]
[1759299023796,3.72098169,4139.6,4139.5,0.57464625]
[1759299023993,3.21007767,4139.6,4139.5,0.57464625]
[1759299024194,3.21007767,4139.6,4139.5,0.90854625]
[1759299026996,3.21007767,4139.6,4139.5,1.36244625]
[1759299027399,0.00227767,4139.6,4139.5,1.36244625]
[1759299035303,0.00227767,4139.6,4139.5,1.79715625]
[1759299037197,5.00227767,4139.6,4139.5,0.47014625]
[1759299037394,8.72500561,4139.6,4139.5,0.47014625]
[1759299037804,8.72500561,4139.6,4139.5,0.67914625]
[1759299038106,3.72500561,4139.6,4139.5,0.89474625]
[1759299038301,4.59687114,4139.6,4139.5,0.89474625]
[1759299040405,3.72500561,4139.6,4139.5,0.89474625]
[1759299041700,3.72500561,4139.6,4139.5,1.34864625]
[1759299041909,0.00227767,4139.6,4139.5,1.34864625]
[1759299044507,0.00227767,4139.6,4139.5,1.60664625]
[1759299050609,0.00227767,4139.6,4139.5,2.04135625]
[1759299053705,0.00227767,4139.6,4139.5,1.78335625]
[1759299053910,0.51994362,4139.6,4139.5,1.32945625]
[1759299054112,0.51994362,4139.6,4139.5,1.58545625]
[1759299056213,0.00227767,4139.6,4139.5,2.03935625]
[1759299056611,3.2078,4140.3,4140.2,1.21214]
[1759299056818,3.0745,4140.3,4140.2,1.78874]
[1759299057512,3.07620551,4140.3,4140.2,1.78874]
[1759299060012,0.00170551,4140.3,4140.2,1.78874]
[1759299067023,0.00170551,4140.3,4140.2,1.53274]
[1759299067522,0.00170551,4140.3,4140.2,1.78774]
[1759299068719,0.00170551,4140.3,4140.2,1.53274]
[1759299068926,0.00170551,4140.3,4140.2,1.78774]
[1759299069924,0.00170551,4140.3,4140.2,1.608221]
[1759299070122,0.00170551,4140.3,4140.2,1.928821]
[1759299070322,0.00170551,4140.3,4140.2,1.78774]
[1759299073923,3.2078,4140.8,4140.7,0.88679]
[1759299074124,3.72062502,4140.8,4140.7,2.3373868]
[1759299074929,3.72283461,4140.8,4140.7,2.3373868]
[1759299077030,0.51503461,4140.8,4140.7,2.6579868]
[1759299077231,3.2078,4141.3,4141.2,1.21204]
[1759299077425,0.51260752,4141.3,4141.2,2.3373368]
[1759299078333,0.51510349,4141.3,4141.2,2.3373368]
[1759299080322,0.51510349,4141.3,4141.2,1.46604]
[1759299086038,0.51510349,4141.3,4141.2,1.78664]
[1759299086828,0.51510349,4141.3,4141.2,1.53264]
[1759299087031,0.51510349,4141.3,4141.2,1.46504]
[1759299091143,0.94962349,4141.3,4141.2,1.46504]
[1759299091342,0.51510349,4141.3,4141.2,1.46504]
[1759299098250,0.51510349,4141.3,4141.2,1.21204]
[1759299098450,0.51510349,4141.3,4141.2,1.46404]
[1759299100848,0.51510349,4141.3,4141.2,1.21204]
[1759299101042,0.51510349,4141.3,4141.2,1.46404]
[1759299112363,0.94962349,4141.3,4141.2,0.7775]
[1759299112659,4.15742349,4141.3,4141.2,1.0285]
[1759299113368,4.15742349,4141.3,4141.2,0.3253]
[1759299114859,4.15742349,4141.3,4141.2,0.75984]
[1759299115057,4.15742349,4141.3,4141.2,0.96894]
[1759299115472,3.72290349,4141.3,4141.2,1.19394]
[1759299115953,4.15742349,4141.3,4141.2,1.19394]
[1759299116151,4.15742349,4141.3,4141.2,0.7594]
[1759299116358,4.15742349,4141.3,4141.2,0.3253]
[1759299120464,4.15742349,4141.3,4141.2,0.96894]
[1759299121069,4.15742349,4141.3,4141.2,0.5344]
[1759299121965,4.15742349,4141.3,4141.2,0.7594]
[1759299125660,3.72290349,4141.3,4141.2,1.19394]
[1759299125968,3.72290349,4141.3,4141.2,1.51454]
[1759299126661,3.72290349,4141.3,4141.2,1.76454]
[1759299126860,0.51510349,4141.3,4141.2,1.76454]
[1759299128969,0.51558655,4141.3,4141.2,1.76454]
[1759299147180,0.51558655,4141.3,4141.2,2.63549644]
[1759299149577,0.51558655,4141.3,4141.2,1.76354]
[1759299156989,0.51558655,4141.3,4141.2,2.63449644]
[1759299167092,0.00249597,4141.3,4141.2,2.63449644]
[1759299167293,0.51454611,4141.3,4141.2,2.63449644]
[1759299167495,0.51454611,4141.3,4141.2,1.76354]
[1759299167691,0.51454611,4141.3,4141.2,2.63449644]
[1759299171993,0.51454611,4141.3,4141.2,2.38549644]
[1759299172197,0.51454611,4141.3,4141.2,2.63449644]
[1759299173201,0.51454611,4141.3,4141.2,2.38549644]
[1759299173396,0.51454611,4141.3,4141.2,2.63449644]
[1759299180805,0.00249597,4141.3,4141.2,2.63449644]
[1759299181005,0.51450804,4141.3,4141.2,2.63449644]
[1759299182308,0.51450804,4141.3,4141.2,1.76354]
[1759299182507,0.51450804,4141.3,4141.2,2.63449644]
[1759299186209,0.51450804,4141.3,4141.2,1.76354]
[1759299186409,0.51450804,4141.3,4141.2,2.63449644]
[1759299189713,0.51450804,4141.3,4141.2,2.38549644]
[1759299189916,0.51450804,4141.3,4141.2,2.31389644]
[1759299190109,0.51450804,4141.3,4141.2,2.63449644]
[1759299190310,0.51450804,4141.3,4141.2,3.50545288]
[1759299190516,3.2078,4142.3,4141.2,3.50545288]
[1759299190517,3.2078,4142.3,4142.2,1.21223]
[1759299190716,3.2078,4142.3,4142.2,2.33218644]
[1759299191518,3.21076232,4142.3,4142.2,2.33218644]
[1759299195620,0.00296232,4142.3,4142.2,2.33218644]
[1759299197310,0.00296232,4142.3,4142.2,2.65278644]
[1759299202524,0.50885492,4142.3,4142.2,2.65278644]
[1759299204327,0.50885492,4142.3,4142.2,1.78183]
[1759299206937,0.50885492,4142.3,4142.2,2.78914042]
[1759299207124,0.50885492,4142.3,4142.2,5.99694042]
[1759299207329,0.00296232,4142.3,4142.2,5.99694042]
[1759299212936,3.2078,4143.3,4143.2,0.43433]
[1759299213137,3.71352284,4143.3,4143.2,1.46413]
[1759299214045,3.71603752,4143.3,4143.2,1.46620469]
[1759299214742,0.50823752,4143.3,4143.2,1.46620469]
[1759299215549,0.50823752,4143.3,4143.2,2.79411511]
[1759299216450,0.00251468,4143.3,4143.2,2.79411511]
[1759299219852,0.00251468,4143.3,4143.2,2.47351511]
[1759299220354,0.00251468,4143.3,4143.2,2.54511511]
[1759299220552,0.00251468,4143.3,4143.2,2.79411511]
[1759299230158,0.00251468,4143.3,4143.2,2.54511511]
[1759299230365,0.00251468,4143.3,4143.2,2.79311511]
[1759299232262,0.00251468,4143.3,4143.2,2.54511511]
[1759299232565,0.00251468,4143.3,4143.2,2.79311511]
[1759299235660,0.00251468,4143.3,4143.2,2.54511511]
[1759299235863,0.00251468,4143.3,4143.2,2.79311511]
[1759299237069,0.00251468,4143.3,4143.2,2.54511511]
[1759299237268,0.00251468,4143.3,4143.2,2.79311511]
[1759299243466,0.50621894,4143.3,4143.2,2.79311511]
[1759299243873,0.00251468,4143.3,4143.2,2.79311511]
[1759299244574,0.50641759,4143.3,4143.2,2.79311511]
[1759299245272,0.50671812,4143.3,4143.2,2.79311511]
[1759299246375,0.50110015,4143.3,4143.2,2.79311511]
[1759299249973,0.50110015,4143.3,4143.2,2.47251511]
[1759299250172,0.50110015,4143.3,4143.2,2.79311511]
[1759299254681,0.50110015,4143.3,4143.2,0.99100469]
[1759299254682,5.50110015,4143.3,4143.2,0.99100469]
[1759299254883,5.50110015,4143.3,4143.2,1.23900469]
[1759299255682,5.50110015,4143.3,4143.2,1.46310469]
[1759299256881,5.50110015,4143.3,4143.2,1.01590469]
[1759299257183,5.50110015,4143.3,4143.2,1.46510469]
[1759299258487,0.50110015,4143.3,4143.2,1.46510469]
[1759299269387,0.93541015,4143.3,4143.2,1.46510469]
[1759299273399,0.93541015,4143.3,4143.2,0.78277469]
[1759299273693,0.93541015,4143.3,4143.2,0.99150469]
[1759299273893,0.93541015,4143.3,4143.2,1.21100469]
[1759299274800,0.93541015,4143.3,4143.2,0.77667469]
[1759299288600,6.18341015,4143.3,4143.0,0.1252]
[1759299288903,3.2078,4143.1,4143.0,1.43786367]
[1759299289104,0.49858547,4143.1,4143.0,1.87221367]
[1759299289303,0.00251468,4143.3,4143.2,0.87743]
[1759299289602,0.00251468,4143.3,4143.2,1.19803]
[1759299289803,0.00251468,4143.3,4143.2,1.2010554]
[1759299289992,0.00251468,4143.3,4143.2,4.4088554]
[1759299290707,0.00251468,4143.3,4143.2,4.7266554]
[1759299293599,0.00251468,4143.3,4143.2,4.9746554]
[1759299296209,0.00251468,4143.3,4143.2,5.84481907]
[1759299300626,0.43424,4144.0,4143.9,0.88375]
[1759299300825,0.43424,4144.0,4143.9,1.21575]
[1759299301027,3.2078,4144.1,4144.0,1.01414]
[1759299301223,3.64203,4144.1,4144.0,0.9119]
[1759299301431,4.13281084,4144.1,4144.0,0.9119]
[1759299301621,4.13497508,4144.1,4144.0,0.9119]
[1759299302225,4.13497508,4144.1,4144.0,0.6836]
[1759299303424,4.13497508,4144.1,4144.0,0.4624]
[1759299304027,5.00513875,4144.1,4144.0,0.4624]
[1759299306432,4.51435791,4144.1,4144.0,0.4624]
[1759299309725,3.64419424,4144.1,4144.0,0.9119]
[1759299309923,3.64419424,4144.1,4144.0,1.34614]